bitfinex-derivatives/quotes_SOLF0:USTF0_20250818
["timestamp","ask_amount","ask_price","bid_price","bid_amount"]
[1755530653189,4.00953737,181.66,181.61,6.12822732]
[1755530653394,4.00953737,181.65,181.61,6.12822732]
[1755530653590,6.13967084,181.72,181.61,11.63172732]
[1755530653795,4.02091422,181.71,181.61,11.63172732]
[1755530653995,4.02091422,181.7,181.61,11.63172732]
[1755530654300,4.02091422,181.69,181.61,6.12822732]
[1755530654598,4.02091422,181.68,181.61,6.12822732]
[1755530654803,4.02091422,181.67,181.63,5.5028]
[1755530655003,4.02091422,181.66,181.63,5.5028]
[1755530655201,6.13967084,181.75,181.63,5.5028]
[1755530655395,10.1103855,181.74,181.62,5.5031]
[1755530655598,3.97071466,181.73,181.62,5.5031]
[1755530655802,3.97071466,181.72,181.61,11.63162732]
[1755530656105,8.38634764,181.71,181.61,6.12822732]
[1755530656300,8.38634764,181.7,181.61,6.12822732]
[1755530656507,8.38634764,181.69,181.62,5.5031]
[1755530656706,3.97071466,181.68,181.62,5.5031]
[1755530656903,3.97071466,181.67,181.61,6.12822732]
[1755530657102,54.0,181.72,181.62,6.12822732]
[1755530657302,62.40225174,181.71,181.62,6.12822732]
[1755530657606,8.40225174,181.7,181.62,6.12822732]
[1755530657808,8.40225174,181.69,181.59,6.12822732]
[1755530658009,3.97809983,181.68,181.59,6.12822732]
[1755530658206,3.97809983,181.67,181.59,6.12822732]
[1755530658407,3.97809983,181.66,181.59,6.12822732]
[1755530658606,54.0,181.71,181.6,5.5036]
[1755530658809,8.40536095,181.7,181.6,5.5036]
[1755530659008,8.40536095,181.69,181.6,5.5036]
[1755530659208,8.40832146,181.68,181.6,5.5036]
[1755530659412,3.97909893,181.67,181.59,6.12822732]
[1755530659607,54.0,181.71,181.59,6.12822732]
[1755530659804,8.40830256,181.7,181.62,6.12822732]
[1755530660005,8.40830256,181.69,181.62,6.12822732]
[1755530660206,3.9801326,181.68,181.55,82.6328486]
[1755530660402,3.9801326,181.67,181.6,6.12822732]
[1755530660604,54.0,181.71,181.6,11.63172732]
[1755530660806,54.0,181.71,181.6,6.12822732]
[1755530660807,8.40773809,181.7,181.6,6.12822732]
[1755530661099,8.40773809,181.69,181.6,6.12822732]
[1755530661303,3.97992064,181.68,181.6,6.12822732]
[1755530661504,3.97992064,181.67,181.6,6.12822732]
[1755530661705,54.0,181.71,181.64,5.5024]
[1755530661905,8.41048142,181.7,181.64,5.5024]
[1755530662108,3.98121718,181.69,181.64,5.5024]
[1755530662302,54.0,181.71,181.66,5.5019]
[1755530662507,3.98228422,181.7,181.63,6.12822732]
[1755530662708,54.0,181.71,181.66,5.5017]
[1755530662908,3.981474,181.7,181.63,6.12822732]
[1755530663110,54.0,181.71,181.63,6.12822732]
[1755530663309,3.98133526,181.7,181.64,5.5025]
[1755530663609,54.0,181.71,181.63,6.12822732]
[1755530663807,3.98081576,181.7,181.63,6.12822732]
[1755530664117,54.0,181.76,181.65,5.5022]
[1755530664303,8.3691457,181.75,181.63,6.12822732]
[1755530664610,8.3691457,181.74,181.63,6.12822732]
[1755530664811,8.3691457,181.73,181.63,6.12822732]
[1755530665113,3.94037668,181.72,181.63,6.12822732]
[1755530665311,3.94037668,181.71,181.64,5.5024]
[1755530665507,54.0,181.75,181.63,6.12822732]
[1755530665711,8.36663711,181.74,181.63,6.12822732]
[1755530665913,3.93949386,181.73,181.63,6.12822732]
[1755530666115,3.93949386,181.72,181.63,6.12822732]
[1755530666308,54.0,181.75,181.63,6.12822732]
[1755530666505,8.36573039,181.74,181.63,6.12822732]
[1755530666709,3.93890448,181.73,181.63,6.12822732]
[1755530666910,3.93890448,181.72,181.64,5.5025]
[1755530667113,54.0,181.75,181.64,5.5025]
[1755530667417,3.93916353,181.74,181.63,6.12822732]
[1755530667716,3.93916353,181.73,181.63,6.12822732]
[1755530667916,54.0,181.75,181.67,5.5014]
[1755530668118,3.93999123,181.74,181.66,6.12822732]
[1755530668312,3.93999123,181.73,181.67,3.88474449]
[1755530668514,54.0,181.75,181.67,3.88474449]
[1755530668714,3.93958788,181.74,181.67,3.88474449]
[1755530668913,54.0,181.75,181.67,3.88474449]
[1755530669116,3.93959027,181.74,181.67,3.88474449]
[1755530669317,54.0,181.75,181.67,3.88474449]
[1755530669616,3.93962275,181.74,181.67,3.88474449]
[1755530669815,54.0,181.75,181.67,3.88474449]
[1755530670012,3.93924374,181.74,181.67,3.88474449]
[1755530670318,54.0,181.75,181.67,3.88474449]
[1755530670719,54.0,181.75,181.7,3.88474449]
[1755530672216,54.0,181.75,181.7,9.38524449]
[1755530672417,54.0,181.75,181.7,3.88474449]
[1755530675924,54.0,181.75,181.68,3.88474449]
[1755530676126,3.94054411,181.74,181.68,3.88474449]
[1755530676322,54.0,181.75,181.68,3.88474449]
[1755530676522,3.94145286,181.74,181.68,3.88474449]
[1755530676723,54.0,181.75,181.68,3.88474449]
[1755530677024,3.94145055,181.74,181.68,3.88474449]
[1755530677219,54.0,181.75,181.68,3.88474449]
[1755530677428,3.94234392,181.74,181.68,3.88474449]
[1755530677626,54.0,181.75,181.68,3.88474449]
[1755530677819,3.94238727,181.74,181.68,3.88474449]
[1755530678020,54.0,181.75,181.68,3.88474449]
[1755530678216,3.94238727,181.74,181.68,3.88474449]
[1755530678422,54.0,181.75,181.65,3.88474449]
[1755530678620,3.94238672,181.74,181.65,3.88474449]
[1755530678820,54.0,181.75,181.65,9.38694449]
[1755530679019,3.94229289,181.74,181.65,9.38694449]
[1755530679219,54.0,181.75,181.65,9.38694449]
[1755530679419,3.94213767,181.74,181.65,9.38694449]
[1755530679626,54.0,181.75,181.65,9.38694449]
[1755530679920,3.94221186,181.74,181.65,9.38694449]
[1755530680125,54.0,181.75,181.65,9.38694449]
[1755530680327,3.94277327,181.74,181.65,9.38694449]
[1755530680525,54.0,181.75,181.65,9.38694449]
[1755530680830,3.94271144,181.74,181.65,9.38694449]
[1755530681033,54.0,181.75,181.68,3.88474449]
[1755530681332,3.94280513,181.74,181.68,3.88474449]
[1755530681630,54.0,181.75,181.68,9.38604449]
[1755530682028,54.0,181.75,181.68,3.88474449]
[1755530682227,54.0,181.75,181.68,9.38604449]
[1755530682629,54.0,181.75,181.69,5.5009]
[1755530682829,54.0,181.75,181.61,3.88474449]
[1755530682830,54.0,181.75,181.71,3.88474449]
[1755530683835,369.52,181.78,181.71,3.88474449]
[1755530684030,3.9433337,181.77,181.71,3.88474449]
[1755530684223,369.52,181.78,181.71,3.88474449]
[1755530684422,3.94330715,181.77,181.71,3.88474449]
[1755530684628,369.52,181.78,181.71,3.88474449]
[1755530684826,3.94236271,181.77,181.71,3.88474449]
[1755530685034,369.52,181.78,181.71,3.88474449]
[1755530685235,3.94245389,181.77,181.71,3.88474449]
[1755530685534,369.52,181.78,181.71,3.88474449]
[1755530686336,369.52,181.78,181.71,9.38504449]
[1755530686642,192.82,181.79,181.74,3.88474449]
[1755530686935,192.82,181.79,181.74,9.38404449]
[1755530687135,192.82,181.79,181.74,3.88474449]
[1755530688138,192.82,181.79,181.74,9.38424449]
[1755530688838,54.0,181.79,181.74,9.38424449]
[1755530689936,54.0,181.79,181.74,3.88474449]
[1755530690626,54.0,181.82,181.74,3.88474449]
[1755530690831,3.9411287,181.81,181.74,3.88474449]
[1755530691031,54.0,181.82,181.74,3.88474449]
[1755530691230,3.94094182,181.81,181.74,3.88474449]
[1755530691434,54.0,181.82,181.74,3.88474449]
[1755530691634,3.94129182,181.81,181.74,3.88474449]
[1755530691833,54.0,181.82,181.74,3.88474449]
[1755530692038,3.94221646,181.81,181.74,3.88474449]
[1755530692231,54.0,181.82,181.74,3.88474449]
[1755530692432,3.94148418,181.81,181.74,3.88474449]
[1755530692729,54.0,181.82,181.74,3.88474449]
[1755530692931,3.94287431,181.81,181.74,3.88474449]
[1755530693132,54.0,181.82,181.74,3.88474449]
[1755530693337,3.94287431,181.81,181.74,3.88474449]
[1755530693537,54.0,181.82,181.74,3.88474449]
[1755530693731,3.94251783,181.81,181.74,3.88474449]
[1755530693935,3.94251783,181.8,181.71,3.88474449]
[1755530694138,3.94251783,181.79,181.71,3.88474449]
[1755530694337,54.0,181.82,181.71,3.88474449]
[1755530694531,8.36973571,181.81,181.71,3.88474449]
[1755530694734,3.93798479,181.8,181.71,3.88474449]
[1755530694935,3.88474449,181.78,181.68,3.88474449]
[1755530695134,196.67798479,181.77,181.68,3.88474449]
[1755530695337,3.93798479,181.76,181.68,3.88474449]
[1755530695537,192.74,181.77,181.68,3.88474449]
[1755530695740,3.93742862,181.76,181.68,3.88474449]
[1755530695938,192.74,181.77,181.68,3.88474449]
[1755530696145,3.93742771,181.76,181.68,3.88474449]
[1755530696336,192.74,181.77,181.68,3.88474449]
[1755530696538,3.93776849,181.76,181.68,3.88474449]
[1755530696837,192.74,181.77,181.68,3.88474449]
[1755530697143,3.93776849,181.76,181.68,3.88474449]
[1755530697340,57.93776849,181.75,181.65,3.88474449]
[1755530697640,3.93776849,181.74,181.65,3.88474449]
[1755530697847,3.93776849,181.73,181.65,3.88474449]
[1755530698046,3.93776849,181.72,181.65,3.88474449]
[1755530698242,57.88474449,181.75,181.65,3.88474449]
[1755530698436,8.37200326,181.74,181.65,3.88474449]
[1755530698641,3.93810405,181.73,181.65,3.88474449]
[1755530698843,3.93810405,181.72,181.65,9.38684449]
[1755530699042,54.0,181.75,181.65,3.88474449]
[1755530699242,3.93825939,181.74,181.65,3.88474449]
[1755530699444,3.93825939,181.73,181.65,3.88474449]
[1755530699645,54.0,181.75,181.65,3.88474449]
[1755530699942,3.93869124,181.74,181.65,3.88474449]
[1755530700147,3.93869124,181.73,181.65,3.88474449]
[1755530700348,3.93809821,181.72,181.65,3.88474449]
[1755530700552,3.93796516,181.71,181.62,3.88474449]
[1755530700747,57.88474449,181.75,181.62,3.88474449]
[1755530701045,62.37131821,181.74,181.62,3.88474449]
[1755530701242,3.88474449,181.72,181.59,3.88474449]
[1755530701549,142.65805776,181.71,181.59,3.88474449]
[1755530701750,3.93805776,181.7,181.59,9.38864449]
[1755530701953,138.72,181.71,181.59,9.38864449]
[1755530702152,3.93759976,181.7,181.59,9.38864449]
[1755530702354,138.72,181.71,181.59,9.38864449]
[1755530702654,57.93667233,181.7,181.59,3.88474449]
[1755530702953,3.93667233,181.69,181.59,3.88474449]
[1755530703156,3.93667233,181.68,181.6,5.5036]
[1755530703353,54.0,181.7,181.6,5.5036]
[1755530703554,3.93569304,181.69,181.6,5.5036]
[1755530703753,3.93569304,181.68,181.6,5.5036]
[1755530703951,54.0,181.7,181.62,3.88474449]
[1755530704456,54.0,181.7,181.56,9.20790692]
[1755530704457,54.0,181.7,181.65,3.88474449]
[1755530704754,138.72,181.72,181.65,3.88474449]
[1755530705550,54.0,181.77,181.65,3.88474449]
[1755530705757,3.94045099,181.76,181.68,3.88474449]
[1755530706057,3.94045099,181.75,181.68,9.38584449]
[1755530706356,192.72,181.77,181.71,3.88474449]
[1755530706552,138.72,181.81,181.71,3.88474449]
[1755530706748,3.94165231,181.8,181.71,3.88474449]
[1755530706949,3.94165231,181.79,181.71,3.88474449]
[1755530707155,138.72,181.81,181.74,3.88474449]
[1755530707351,119.86951314,181.84,181.77,3.88474449]
[1755530707655,3.94206036,181.83,181.77,3.88474449]
[1755530707856,119.86951314,181.84,181.77,3.88474449]
[1755530708054,3.94163473,181.83,181.77,3.88474449]
[1755530708264,119.86951314,181.84,181.77,3.88474449]
[1755530708456,3.94053454,181.83,181.74,3.88474449]
[1755530708653,3.94053454,181.82,181.74,3.88474449]
[1755530708855,119.86951314,181.84,181.74,3.88474449]
[1755530709057,3.94081851,181.83,181.74,3.88474449]
[1755530709257,3.94081851,181.82,181.74,3.88474449]
[1755530709461,119.86951314,181.84,181.74,3.88474449]
[1755530709761,8.37625962,181.83,181.74,3.88474449]
[1755530709957,3.9402,181.82,181.74,3.88474449]
[1755530710161,3.9402,181.81,181.74,3.88474449]
[1755530710459,142.6205044,181.8,181.71,3.88474449]
[1755530710654,3.9405044,181.79,181.68,3.88474449]
[1755530711565,138.68,181.8,181.71,3.88474449]
[1755530711863,138.68,181.8,181.74,3.88474449]
[1755530712058,138.68,181.8,181.71,3.88474449]
[1755530712267,138.68,181.8,181.61,3.88474449]
[1755530712268,3.94085986,181.79,181.68,3.88474449]
[1755530712556,3.94085986,181.78,181.68,3.88474449]
[1755530712761,138.68,181.8,181.68,3.88474449]
[1755530712958,3.94113995,181.79,181.68,3.88474449]
[1755530713161,3.94113995,181.78,181.68,3.88474449]
[1755530713359,138.68,181.8,181.68,3.88474449]
[1755530713563,3.94117552,181.79,181.69,5.501]
[1755530713763,138.68,181.8,181.71,3.88474449]
[1755530714067,138.66,181.82,181.74,3.88474449]
[1755530714270,3.94042082,181.81,181.74,3.88474449]
[1755530714467,3.94028691,181.8,181.74,3.88474449]
[1755530714765,138.66,181.82,181.74,3.88474449]
[1755530714961,3.94024352,181.81,181.74,3.88474449]
[1755530715163,3.94024352,181.8,181.71,3.88474449]
[1755530715464,138.66,181.82,181.71,3.88474449]
[1755530715665,20.47035319,181.81,181.71,3.88474449]
[1755530715865,3.94035319,181.8,181.71,3.88474449]
[1755530718169,20.41474449,181.78,181.65,3.88474449]
[1755530718365,62.37763185,181.77,181.65,3.88474449]
[1755530718667,142.58035319,181.76,181.65,9.38694449]
[1755530718872,3.94035319,181.75,181.68,3.88474449]
[1755530719968,138.64,181.76,181.68,3.88474449]
[1755530720867,138.64,181.76,181.67,3.88474449]
[1755530721070,3.94127679,181.75,181.67,3.88474449]
[1755530721272,138.64,181.76,181.67,3.88474449]
[1755530721569,3.94112319,181.75,181.67,3.88474449]
[1755530721764,138.64,181.76,181.67,3.88474449]
[1755530723174,138.64,181.76,181.7,3.88474449]
[1755530723375,54.0,181.77,181.7,3.88474449]
[1755530723671,192.62,181.81,181.7,3.88474449]
[1755530723867,57.94073846,181.8,181.7,3.88474449]
[1755530724162,3.94073846,181.79,181.7,3.88474449]
[1755530726572,20.45073846,181.79,181.67,3.88474449]
[1755530726775,12.26315303,181.78,181.67,3.88474449]
[1755530726971,3.94073846,181.77,181.67,3.88474449]
[1755530727273,54.0,181.76,181.67,3.88474449]
[1755530727471,3.94073846,181.75,181.67,3.88474449]
[1755530728574,54.0,181.76,181.67,3.88474449]
[1755530729077,54.0,181.76,181.7,3.88474449]
[1755530730678,54.0,181.8,181.73,3.88474449]
[1755530730976,138.62,181.81,181.73,9.38454449]
[1755530731175,3.94410181,181.8,181.73,3.88474449]
[1755530731373,138.62,181.81,181.73,3.88474449]
[1755530731670,3.94398281,181.8,181.73,3.88474449]
[1755530731870,138.62,181.81,181.73,3.88474449]
[1755530732078,3.94398281,181.8,181.73,3.88474449]
[1755530732278,138.62,181.81,181.73,3.88474449]
[1755530732472,3.94371874,181.8,181.73,3.88474449]
[1755530732672,138.62,181.81,181.73,3.88474449]
[1755530732872,3.94371874,181.8,181.73,3.88474449]
[1755530733175,138.62,181.81,181.73,3.88474449]
[1755530733376,3.94371874,181.8,181.73,3.88474449]
[1755530733576,138.62,181.81,181.73,3.88474449]
[1755530733772,3.94368511,181.8,181.73,3.88474449]
[1755530733973,138.62,181.81,181.73,3.88474449]
[1755530734176,3.94368511,181.8,181.73,3.88474449]
[1755530734374,138.62,181.81,181.73,3.88474449]
[1755530734573,3.94390015,181.8,181.73,3.88474449]
[1755530734776,3.94427141,181.79,181.73,3.88474449]
[1755530735077,138.62,181.81,181.63,9.20790692]
[1755530735078,155.13,181.81,181.7,3.88474449]
[1755530735278,3.94432263,181.8,181.7,3.88474449]
[1755530735478,3.94432263,181.79,181.7,3.88474449]
[1755530735679,155.13,181.81,181.7,3.88474449]
[1755530735879,3.94468086,181.8,181.7,9.38534449]
[1755530736076,3.94468086,181.79,181.7,9.38534449]
[1755530736376,155.13,181.81,181.7,3.88474449]
[1755530736578,78.90140654,181.8,181.67,3.88474449]
[1755530736777,142.50474449,181.81,181.67,3.88474449]
[1755530736778,78.90140654,181.79,181.67,3.88474449]
[1755530736968,3.94505312,181.78,181.67,3.88474449]
[1755530737171,3.94505312,181.78,181.67,9.38624449]
[1755530737572,3.94505312,181.78,181.67,3.88474449]
[1755530738182,3.94505312,181.78,181.68,5.5011]
[1755530738882,3.94505312,181.78,181.67,9.38624449]
[1755530739477,3.94505312,181.78,181.68,5.5013]
[1755530739683,3.94505312,181.78,181.67,3.88474449]
[1755530740082,3.94505312,181.78,181.67,9.38614449]
[1755530740482,3.94505312,181.78,181.67,3.88474449]
[1755530740980,3.94505312,181.77,181.67,3.88474449]
[1755530741285,3.94505312,181.76,181.67,3.88474449]
[1755530741485,70.51,181.79,181.67,3.88474449]
[1755530741686,8.39486126,181.78,181.6,9.20790692]
[1755530741875,57.94681346,181.77,181.67,3.88474449]
[1755530742074,57.94681346,181.76,181.67,3.88474449]
[1755530742282,3.94681346,181.75,181.67,3.88474449]
[1755530743880,3.94681346,181.75,181.66,3.88474449]
[1755530744178,3.94681346,181.75,181.69,3.88474449]
[1755530744380,54.0,181.76,181.72,3.88474449]
[1755530746182,138.56,181.81,181.72,3.88474449]
[1755530746386,3.94708633,181.8,181.72,3.88474449]
[1755530746584,3.94708633,181.79,181.72,3.88474449]
[1755530746785,3.94708633,181.78,181.72,3.88474449]
[1755530746982,138.56,181.81,181.72,3.88474449]
[1755530747186,3.94824372,181.8,181.72,3.88474449]
[1755530747484,3.94824372,181.79,181.72,9.38464449]
[1755530747684,3.94824372,181.78,181.72,9.38464449]
[1755530747888,138.56,181.81,181.72,9.38464449]
[1755530748077,3.94961537,181.8,181.72,9.38464449]
[1755530748281,3.94961537,181.79,181.72,9.38464449]
[1755530748481,138.56,181.81,181.72,9.38464449]
[1755530748482,3.94961537,181.78,181.72,9.38464449]
[1755530748677,138.56,181.81,181.72,9.38464449]
[1755530748885,3.95203319,181.8,181.72,3.88474449]
[1755530749081,8.40583351,181.79,181.7,3.88474449]
[1755530749281,66.290578,181.78,181.67,3.88474449]
[1755530749480,8.40583351,181.77,181.67,3.88474449]
[1755530749687,8.40583351,181.76,181.67,3.88474449]
[1755530749888,3.95203319,181.75,181.67,3.88474449]
[1755530750092,3.95203319,181.74,181.67,3.88474449]
[1755530750388,3.95512824,181.73,181.67,3.88474449]
[1755530750689,74.39474449,181.78,181.67,3.88474449]
[1755530750983,3.88474449,181.75,181.64,3.88474449]
[1755530751189,3.88474449,181.75,181.62,3.88474449]
[1755530751190,163.44268637,181.74,181.62,3.88474449]
[1755530751491,8.41268637,181.73,181.62,3.88474449]
[1755530751789,3.95522726,181.72,181.62,3.88474449]
[1755530751984,3.95522726,181.71,181.62,3.88474449]
[1755530752185,3.95522726,181.7,181.62,3.88474449]
[1755530752381,138.52,181.74,181.62,3.88474449]
[1755530752584,8.54001786,181.73,181.62,3.88474449]
[1755530752786,12.42476235,181.72,181.62,3.88474449]
[1755530752988,8.54001786,181.71,181.62,3.88474449]
[1755530753187,3.95405239,181.7,181.62,3.88474449]
[1755530753392,3.88474449,181.72,181.62,3.88474449]
[1755530753592,8.53978866,181.71,181.62,3.88474449]
[1755530753792,3.95380348,181.7,181.62,3.88474449]
[1755530753992,3.88474449,181.72,181.62,3.88474449]
[1755530754195,8.53959137,181.71,181.62,3.88474449]
[1755530754491,3.95360619,181.7,181.62,3.88474449]
[1755530754692,3.88474449,181.72,181.62,3.88474449]
[1755530754888,8.53836646,181.71,181.62,3.88474449]
[1755530755092,3.95302551,181.7,181.62,3.88474449]
[1755530755291,3.88474449,181.72,181.62,3.88474449]
[1755530755492,8.53692498,181.71,181.62,3.88474449]
[1755530755688,8.53692498,181.71,181.6,5.5037]
[1755530755689,8.53692498,181.7,181.59,3.88474449]
[1755530755994,3.95234806,181.69,181.59,9.38874449]
[1755530756194,3.88474449,181.72,181.59,9.38874449]
[1755530756494,8.53608506,181.71,181.59,3.88474449]
[1755530756693,3.95137212,181.7,181.61,5.5034]
[1755530756895,3.95137212,181.69,181.61,5.5034]
[1755530757092,3.88474449,181.72,181.61,5.5034]
[1755530757404,8.5336982,181.71,181.61,5.5034]
[1755530757589,3.95137212,181.7,181.6,5.5037]
[1755530757790,3.95137212,181.69,181.6,5.5037]
[1755530757990,3.88474449,181.72,181.6,5.5037]
[1755530758194,8.54918083,181.71,181.6,5.5037]
[1755530758392,3.95031603,181.7,181.6,5.5037]
[1755530758593,3.88474449,181.72,181.6,5.5037]
[1755530758796,8.54710693,181.71,181.59,9.38874449]
[1755530758994,8.54710693,181.7,181.59,3.88474449]
[1755530759196,155.03,181.74,181.55,138.54]
[1755530759197,61.83409527,181.69,181.56,3.88474449]
[1755530759498,8.54657629,181.68,181.56,3.88474449]
[1755530759694,3.94935078,181.67,181.56,3.88474449]
[1755530759894,57.88474449,181.69,181.57,5.5045]
[1755530760095,8.54597568,181.68,181.57,5.5045]
[1755530760295,3.94859729,181.67,181.56,3.88474449]
[1755530760496,54.0,181.67,181.56,9.38964449]
[1755530761402,54.0,181.67,181.59,3.88474449]
[1755530762498,54.0,181.67,181.55,138.54]
[1755530762698,57.88474449,181.69,181.57,3.88474449]
[1755530762994,8.54153185,181.68,181.57,9.38934449]
[1755530763198,3.94645728,181.67,181.57,3.88474449]
[1755530763500,57.88474449,181.69,181.57,3.88474449]
[1755530763800,8.53778623,181.68,181.57,3.88474449]
[1755530764100,3.94483686,181.67,181.57,3.88474449]
[1755530764300,3.94483686,181.66,181.57,3.88474449]
[1755530764503,57.88474449,181.69,181.54,5.5054]
[1755530764701,8.53444803,181.68,181.55,3.88474449]
[1755530764901,8.53444803,181.67,181.55,9.38994449]
[1755530765091,54.0,181.69,181.58,3.88474449]
[1755530765295,54.0,181.69,181.6,5.5036]
[1755530765497,54.0,181.71,181.61,3.88474449]
[1755530766192,369.84,181.72,181.64,3.88474449]
[1755530766793,120.41379613,181.73,181.67,3.88474449]
[1755530766991,138.54,181.8,181.67,3.88474449]
[1755530767198,8.52670549,181.79,181.67,3.88474449]
[1755530767401,8.52670549,181.78,181.7,3.88474449]
[1755530767606,138.54,181.8,181.7,3.88474449]
[1755530767607,3.93999326,181.77,181.7,3.88474449]
[1755530767802,138.54,181.8,181.7,3.88474449]
[1755530768001,8.52586859,181.79,181.7,3.88474449]
[1755530768203,3.93957988,181.78,181.7,3.88474449]
[1755530768504,3.93957988,181.77,181.7,3.88474449]
[1755530768809,138.54,181.8,181.7,3.88474449]
[1755530769002,8.52224519,181.79,181.7,3.88474449]
[1755530769307,8.52224519,181.78,181.7,3.88474449]
[1755530769507,3.93809995,181.77,181.7,3.88474449]
[1755530769700,138.54,181.8,181.7,3.88474449]
[1755530769902,3.93869799,181.79,181.73,3.88474449]
[1755530770106,138.54,181.8,181.73,3.88474449]
[1755530770405,3.93890144,181.79,181.73,3.88474449]
[1755530770606,138.54,181.8,181.73,3.88474449]
[1755530770796,3.93862999,181.79,181.73,3.88474449]
[1755530771000,138.54,181.8,181.73,3.88474449]
[1755530771204,3.93862999,181.79,181.73,3.88474449]
[1755530771507,138.54,181.8,181.73,3.88474449]
[1755530771804,3.93874361,181.79,181.7,3.88474449]
[1755530772109,3.93874361,181.78,181.7,3.88474449]
[1755530772510,3.93874361,181.77,181.7,3.88474449]
[1755530772710,138.54,181.8,181.7,3.88474449]
[1755530772908,8.52394194,181.79,181.7,3.88474449]
[1755530773114,3.93877606,181.78,181.7,3.88474449]
[1755530773306,3.93877606,181.77,181.7,3.88474449]
[1755530773507,54.0,181.79,181.7,9.38544449]
[1755530773807,3.93912938,181.78,181.73,3.88474449]
[1755530774002,138.54,181.8,181.73,3.88474449]
[1755530774311,3.93904068,181.79,181.73,3.88474449]
[1755530774607,138.54,181.8,181.73,3.88474449]
[1755530774810,3.93900968,181.79,181.7,3.88474449]
[1755530775004,3.93900968,181.78,181.7,3.88474449]
[1755530775210,3.93900968,181.77,181.7,3.88474449]
[1755530775406,138.54,181.8,181.7,3.88474449]
[1755530775613,8.52411795,181.79,181.6,20.21500692]
[1755530775811,3.93884683,181.78,181.69,3.88474449]
[1755530776011,138.54,181.8,181.69,3.88474449]
[1755530776314,8.52411795,181.79,181.69,3.88474449]
[1755530776512,138.54,181.8,181.69,3.88474449]
[1755530776513,3.93884683,181.78,181.69,3.88474449]
[1755530776713,138.54,181.8,181.69,3.88474449]
[1755530776914,3.93949435,181.79,181.69,3.88474449]
[1755530777213,3.93949435,181.78,181.69,9.38574449]
[1755530777417,138.54,181.8,181.69,9.38574449]
[1755530777619,3.94002659,181.79,181.69,9.38574449]
[1755530777814,3.94002659,181.78,181.69,9.38574449]
[1755530778014,138.54,181.8,181.69,3.88474449]
[1755530778214,8.5270775,181.79,181.69,3.88474449]
[1755530778415,3.94021206,181.78,181.69,3.88474449]
[1755530778715,3.94053981,181.77,181.69,3.88474449]
[1755530778913,3.94053981,181.76,181.69,3.88474449]
[1755530779119,138.54,181.8,181.69,3.88474449]
[1755530779316,82.92314489,181.79,181.59,84.90398703]
[1755530779623,3.88474449,181.76,181.65,3.88474449]
[1755530779814,3.94053418,181.75,181.65,3.88474449]
[1755530780015,138.46,181.74,181.65,3.88474449]
[1755530780521,3.94060201,181.73,181.64,3.88474449]
[1755530780722,138.46,181.74,181.64,3.88474449]
[1755530780922,3.94147029,181.73,181.64,3.88474449]
[1755530781221,138.46,181.74,181.64,3.88474449]
[1755530781420,3.94174817,181.73,181.64,9.38724449]
[1755530781621,138.46,181.74,181.64,9.38724449]
[1755530781821,3.94201466,181.73,181.64,3.88474449]
[1755530782022,138.46,181.74,181.64,3.88474449]
[1755530782222,3.94220374,181.73,181.64,3.88474449]
[1755530782412,138.46,181.74,181.64,3.88474449]
[1755530782620,7.82689614,181.73,181.61,3.88474449]
[1755530782926,3.94215165,181.72,181.61,3.88474449]
[1755530783223,3.88474449,181.7,181.59,84.90398703]
[1755530784426,3.88474449,181.7,181.59,90.40788703]
[1755530784625,3.88474449,181.7,181.59,84.90398703]
[1755530784924,74.39474449,181.75,181.61,3.88474449]
[1755530785119,146.97092351,181.74,181.64,3.88474449]
[1755530785316,8.53092351,181.73,181.64,3.88474449]
[1755530785519,138.44,181.74,181.64,3.88474449]
[1755530785520,3.94321076,181.72,181.64,3.88474449]
[1755530785723,154.95,181.74,181.64,3.88474449]
[1755530785925,8.53178768,181.73,181.64,3.88474449]
[1755530786125,82.92647672,181.72,181.59,84.90398703]
[1755530786426,16.51,181.7,181.59,84.90398703]
[1755530786629,3.94361925,181.69,181.59,84.90398703]
[1755530786822,16.51,181.7,181.59,84.90398703]
[1755530787016,20.45349483,181.69,181.59,84.90398703]
[1755530787220,16.51,181.69,181.59,84.90398703]
[1755530787620,16.51,181.69,181.59,90.40798703]
[1755530787823,16.51,181.71,181.59,84.90398703]
[1755530788121,142.40159392,181.7,181.61,3.88474449]
[1755530788320,138.46,181.7,181.61,3.88474449]
[1755530788828,138.46,181.7,181.62,5.503]
[1755530789325,138.46,181.7,181.61,3.88474449]
[1755530789925,138.46,181.7,181.62,5.5031]
[1755530790724,138.46,181.7,181.61,9.38804449]
[1755530791030,138.46,181.7,181.6,3.88474449]